[Event "56th Biel Festival Rapid 2023"]
[Site "Biel"]
[Date "2024.04.13"]
[Round "5.33"]
[White "Schmuki, Roman"]
[Black "Rahimi, Hamid"]
[Result "*"]
[WhiteElo "1867"]
[BlackElo "1484"]
[PlyCount "38"]
[EventDate "2023.07.16"]
[EventType "swiss"]
[EventCountry "SUI"]
[TimeControl "900+5"]

1. e4 {[%emt 0:00:03]} d5 {[%emt 0:03:03]} 2. exd5 {[%emt 0:00:02]} Qxd5 {[%emt 0:00:05]} 3. Nc3 {[%emt 0:00:02]} Qd8 {[%emt 0:00:01]} 4. g3 {[%emt 0:00:01]} Nf6 {[%emt 0:00:00]} 5. Bg2 {[%emt 0:00:01]} Nc6 {[%emt 0:00:00]} 6. Nf3 {[%emt 0:00:10]} Bg4 {[%emt 0:00:01]} 7. h3 {[%emt 0:00:03]} Bh5 {[%emt 0:00:06]} 8. g4 {[%emt 0:01:09]} Bg6 {[%emt 0:00:00]} 9. d3 {[%emt 0:00:06]} e6 {[%emt 0:00:03]} 10. Bf4 {[%emt 0:00:01]} Bd6 {[%emt 0:00:07]} 11. Qd2 {[%emt 0:00:26]} Bxf4 {[%emt 0:00:58]} 12. Qxf4 {[%emt 0:00:04]} Qd6 {[%emt 0:00:10]} 13. Qd2 {[%emt 0:02:38]} a6 {[%emt 0:00:01]} 14. O-O-O {[%emt 0:00:03]} O-O-O {[%emt 0:00:19]} 15. Rde1 {[%emt 0:01:02]} h6 {[%emt 0:01:39]} 16. Nh4 {[%emt 0:00:47]} Bh7 {[%emt 0:00:42]} 17. f4 {[%emt 0:00:02]} Nd5 {[%emt 0:01:23]} 18. Nxd5 {[%emt 0:00:26]} exd5 {[%emt 0:00:05]} 19. Nf3 {[%emt 0:00:15]} f6 {[%emt 0:00:11]} *

[Event "56th Biel Festival Rapid 2023"]
[Site "Biel"]
[Date "2024.04.13"]
[Round "5.35"]
[White "Paholok, Igor"]
[Black "Tcheau, Alain"]
[Result "*"]
[WhiteElo "1710"]
[BlackElo "1985"]
[PlyCount "45"]
[EventDate "2023.07.16"]
[EventType "swiss"]
[EventCountry "SUI"]
[TimeControl "900+5"]

1. d4 {[%emt 0:00:03]} d5 {[%emt 0:00:06]} 2. Nf3 {[%emt 0:00:06]} e6 {[%emt 0:00:01]} 3. e3 {[%emt 0:00:01]} Nc6 {[%emt 0:00:02]} 4. Bd3 {[%emt 0:00:00]} Nf6 {[%emt 0:00:02]} 5. c3 {[%emt 0:00:01]} Bd6 {[%emt 0:00:02]} 6. Nbd2 {[%emt 0:00:01]} Bd7 {[%emt 0:00:01]} 7. O-O {[%emt 0:00:06]} Qe7 {[%emt 0:00:01]} 8. b4 {[%emt 0:00:07]} O-O-O {[%emt 0:00:06]} 9. b5 {[%emt 0:00:12]} Na5 {[%emt 0:00:05]} 10. Nb3 {[%emt 0:00:08]} Nc4 {[%emt 0:00:20]} 11. a4 {[%emt 0:00:27]} e5 {[%emt 0:00:30]} 12. Bxc4 {[%emt 0:00:18]} dxc4 {[%emt 0:00:02]} 13. dxe5 {[%emt 0:01:43]} Bxe5 {[%emt 0:00:12]} 14. Ba3 {[%emt 0:02:02]} Bd6 {[%emt 0:00:44]} 15. Bxd6 {[%emt 0:00:17]} cxd6 {[%emt 0:00:31]} 16. Na5 {[%emt 0:00:30]} d5 {[%emt 0:00:40]} 17. Qd4 {[%emt 0:03:24]} b6 {[%emt 0:00:42]} 18. Nc6 {[%emt 0:00:09]} Bxc6 {[%emt 0:00:02]} 19. bxc6 {[%emt 0:00:04]} Qc5 {[%emt 0:00:34]} 20. Ne5 {[%emt 0:00:41]} Qxd4 {[%emt 0:00:04]} 21. exd4 {[%emt 0:00:03]} Rhf8 {[%emt 0:00:17]} 22. a5 {[%emt 0:00:11]} b5 {[%emt 0:00:34]} 23. a6 {[%emt 0:00:02]} *

[Event "56th Biel Festival Rapid 2023"]
[Site "Biel"]
[Date "2024.04.13"]
[Round "5.36"]
[White "Begdullayev, Tamerlan"]
[Black "Stebahne, Olaf"]
[Result "*"]
[WhiteElo "1783"]
[BlackElo "1913"]
[PlyCount "41"]
[EventDate "2023.07.16"]
[EventType "swiss"]
[EventCountry "SUI"]
[TimeControl "900+5"]

1. c4 {[%emt 0:00:02]} d6 {[%emt 0:00:10]} 2. g3 {[%emt 0:00:12]} g6 {[%emt 0:00:13]} 3. Bg2 {[%emt 0:00:04]} Bg7 {[%emt 0:00:02]} 4. Nf3 {[%emt 0:00:04]} Nf6 {[%emt 0:00:16]} 5. Nc3 {[%emt 0:00:03]} O-O {[%emt 0:00:05]} 6. O-O {[%emt 0:00:05]} e5 {[%emt 0:00:24]} 7. e4 {[%emt 0:00:04]} Nc6 {[%emt 0:00:24]} 8. d3 {[%emt 0:00:03]} Bd7 {[%emt 0:00:04]} 9. Be3 {[%emt 0:00:09]} Ng4 {[%emt 0:00:18]} 10. Qd2 {[%emt 0:00:18]} Nxe3 {[%emt 0:00:08]} 11. fxe3 {[%emt 0:00:05]} Ne7 {[%emt 0:00:43]} 12. d4 {[%emt 0:00:08]} Qc8 {[%emt 0:00:35]} 13. Rad1 {[%emt 0:00:27]} Rd8 {[%emt 0:00:32]} 14. d5 {[%emt 0:00:23]} Rf8 {[%emt 0:00:46]} 15. b4 {[%emt 0:00:50]} Bh3 {[%emt 0:00:37]} 16. Qf2 {[%emt 0:01:07]} Bxg2 {[%emt 0:00:14]} 17. Kxg2 {[%emt 0:00:02]} f5 {[%emt 0:01:12]} 18. exf5 {[%emt 0:00:22]} Nxf5 {[%emt 0:00:15]} 19. e4 {[%emt 0:00:22]} Nd4 {[%emt 0:00:16]} 20. Qe3 {[%emt 0:00:17]} Qg4 {[%emt 0:02:36]} 21. h3 {[%emt 0:00:33]} *

[Event "56th Biel Festival Rapid 2023"]
[Site "Biel"]
[Date "2024.04.13"]
[Round "5.41"]
[White "Prieb, Robert"]
[Black "Schaer, Bryan"]
[Result "*"]
[WhiteElo "2060"]
[BlackElo "1283"]
[PlyCount "53"]
[EventDate "2023.07.16"]
[EventType "swiss"]
[EventCountry "SUI"]
[TimeControl "900+5"]

1. d4 {[%emt 0:00:04]} e6 {[%emt 0:00:03]} 2. c4 {[%emt 0:00:05]} Nf6 {[%emt 0:00:04]} 3. Nf3 {[%emt 0:00:03]} d5 {[%emt 0:00:04]} 4. Nc3 {[%emt 0:00:04]} g6 {[%emt 0:00:15]} 5. Bf4 {[%emt 0:00:42]} Bg7 {[%emt 0:00:13]} 6. e3 {[%emt 0:00:07]} c6 {[%emt 0:00:08]} 7. c5 {[%emt 0:00:08]} O-O {[%emt 0:01:19]} 8. Bd3 {[%emt 0:00:04]} Nbd7 {[%emt 0:00:35]} 9. O-O {[%emt 0:00:06]} Nh5 {[%emt 0:00:02]} 10. b4 {[%emt 0:00:18]} Nxf4 {[%emt 0:00:13]} 11. exf4 {[%emt 0:00:03]} b6 {[%emt 0:00:29]} 12. Ne5 {[%emt 0:00:07]} Nxe5 {[%emt 0:00:08]} 13. fxe5 {[%emt 0:00:02]} a5 {[%emt 0:00:16]} 14. a3 {[%emt 0:00:03]} Ba6 {[%emt 0:00:17]} 15. Bxa6 {[%emt 0:00:04]} Rxa6 {[%emt 0:00:04]} 16. Qc2 {[%emt 0:00:21]} axb4 {[%emt 0:01:31]} 17. axb4 {[%emt 0:00:02]} Rxa1 {[%emt 0:00:02]} 18. Rxa1 {[%emt 0:00:02]} b5 {[%emt 0:00:09]} 19. Ra6 {[%emt 0:00:14]} Qc7 {[%emt 0:00:55]} 20. Ne2 {[%emt 0:00:23]} Qb7 {[%emt 0:00:23]} 21. Qa2 {[%emt 0:00:06]} Rc8 {[%emt 0:01:04]} 22. Ra7 {[%emt 0:00:08]} Qb8 {[%emt 0:00:03]} 23. f4 {[%emt 0:00:27]} h6 {[%emt 0:01:08]} 24. Qa6 {[%emt 0:00:07]} Rf8 {[%emt 0:00:19]} 25. Qb7 {[%emt 0:00:51]} Qxb7 {[%emt 0:00:53]} 26. Rxb7 {[%emt 0:00:02]} Rc8 {[%emt 0:00:08]} 27. Ra7 {[%emt 0:00:10]} *

[Event "56th Biel Festival Rapid 2023"]
[Site "Biel"]
[Date "2024.04.13"]
[Round "5.45"]
[White "Tkhoruk, Roman"]
[Black "Caduff Simon"]
[Result "*"]
[WhiteElo "1803"]
[BlackElo "1610"]
[PlyCount "28"]
[EventDate "2023.07.16"]
[EventType "swiss"]
[EventCountry "SUI"]
[TimeControl "900+5"]

1. d4 {[%emt 0:00:02]} d5 {[%emt 0:00:01]} 2. c4 {[%emt 0:00:01]} e6 {[%emt 0:00:05]} 3. e4 {[%emt 0:00:02]} dxe4 {[%emt 0:00:09]} 4. Nc3 {[%emt 0:00:01]} f5 {[%emt 0:00:07]} 5. f3 {[%emt 0:00:31]} exf3 {[%emt 0:00:24]} 6. Nxf3 {[%emt 0:00:03]} Nf6 {[%emt 0:00:33]} 7. Bf4 {[%emt 0:00:17]} Bd6 {[%emt 0:00:27]} 8. Ne5 {[%emt 0:01:01]} Nbd7 {[%emt 0:02:14]} 9. Be2 {[%emt 0:00:28]} O-O {[%emt 0:00:32]} 10. Qd3 {[%emt 0:00:57]} a6 {[%emt 0:03:20]} 11. O-O-O {[%emt 0:00:17]} Bxe5 {[%emt 0:00:41]} 12. dxe5 {[%emt 0:00:19]} Ne8 {[%emt 0:00:05]} 13. h4 {[%emt 0:00:30]} Qe7 {[%emt 0:00:18]} 14. Bg5 {[%emt 0:01:06]} Qc5 {[%emt 0:00:28]} *

[Event "56th Biel Festival Rapid 2023"]
[Site "Biel"]
[Date "2024.04.13"]
[Round "5.46"]
[White "Settegrana Miro"]
[Black "Vianin, Pascal"]
[Result "0-1"]
[WhiteElo "1301"]
[BlackElo "2051"]
[PlyCount "32"]
[EventDate "2023.07.16"]
[EventType "swiss"]
[EventCountry "SUI"]
[TimeControl "900+5"]

1. e4 {[%emt 0:00:03]} g6 {[%emt 0:00:02]} 2. d4 {[%emt 0:00:02]} Bg7 {[%emt 0:00:05]} 3. Nf3 {[%emt 0:00:03]} d6 {[%emt 0:00:01]} 4. Bd3 {[%emt 0:00:39]} a6 {[%emt 0:00:01]} 5. O-O {[%emt 0:00:05]} b5 {[%emt 0:00:02]} 6. Re1 {[%emt 0:00:05]} Bb7 {[%emt 0:00:03]} 7. c3 {[%emt 0:00:02]} Nd7 {[%emt 0:00:01]} 8. Nbd2 {[%emt 0:00:01]} e6 {[%emt 0:00:21]} 9. Nf1 {[%emt 0:00:12]} Ne7 {[%emt 0:00:02]} 10. Ng3 {[%emt 0:00:02]} c5 {[%emt 0:00:30]} 11. h4 {[%emt 0:00:27]} h6 {[%emt 0:00:20]} 12. h5 {[%emt 0:00:07]} g5 {[%emt 0:00:04]} 13. Qc2 {[%emt 0:00:21]} Rc8 {[%emt 0:00:35]} 14. Ne2 {[%emt 0:00:37]} Nf6 {[%emt 0:00:34]} 15. dxc5 {[%emt 0:00:34]} dxc5 {[%emt 0:00:09]} 16. e5 {[%emt 0:00:36]} c4 {[%emt 0:00:19]} 0-1

[Event "56th Biel Festival Rapid 2023"]
[Site "Biel"]
[Date "2024.04.13"]
[Round "5.47"]
[White "Wilhelm, Serge"]
[Black "Baghirov, Elmar"]
[Result "1-0"]
[WhiteElo "1959"]
[BlackElo "1178"]
[PlyCount "39"]
[EventDate "2023.07.16"]
[EventType "swiss"]
[EventCountry "SUI"]
[TimeControl "900+5"]

1. d4 {[%emt 0:00:03]} d5 {[%emt 0:00:01]} 2. Bg5 {[%emt 0:00:01]} Nc6 {[%emt 0:00:39]} 3. Nf3 {[%emt 0:00:15]} Bf5 {[%emt 0:00:55]} 4. e3 {[%emt 0:00:09]} e6 {[%emt 0:00:13]} 5. Bxd8 {[%emt 0:00:02]} Rxd8 {[%emt 0:00:09]} 6. Bd3 {[%emt 0:00:04]} Bg6 {[%emt 0:00:09]} 7. O-O {[%emt 0:00:06]} Nf6 {[%emt 0:00:02]} 8. Nbd2 {[%emt 0:00:05]} Bd6 {[%emt 0:00:29]} 9. Re1 {[%emt 0:00:14]} O-O {[%emt 0:00:05]} 10. Bxg6 {[%emt 0:00:05]} hxg6 {[%emt 0:00:06]} 11. c3 {[%emt 0:00:03]} Rfe8 {[%emt 0:00:18]} 12. e4 {[%emt 0:00:03]} dxe4 {[%emt 0:00:25]} 13. Nxe4 {[%emt 0:00:03]} Nxe4 {[%emt 0:00:11]} 14. Rxe4 {[%emt 0:00:02]} f5 {[%emt 0:00:08]} 15. Re2 {[%emt 0:00:04]} e5 {[%emt 0:00:15]} 16. dxe5 {[%emt 0:00:12]} Bxe5 {[%emt 0:00:05]} 17. Qb3+ {[%emt 0:00:11]} Kh7 {[%emt 0:00:25]} 18. Ng5+ {[%emt 0:00:26]} Kh8 {[%emt 0:00:30]} 19. Re3 {[%emt 0:00:33]} f4 {[%emt 0:00:55]} 20. Rh3# {[%emt 0:00:03]} 1-0

[Event "56th Biel Festival Rapid 2023"]
[Site "Biel"]
[Date "2024.04.13"]
[Round "5.48"]
[White "Begdullayeva, Karina"]
[Black "Giambrone, Salvatore"]
[Result "*"]
[WhiteElo "1034"]
[BlackElo "1772"]
[PlyCount "33"]
[EventDate "2023.07.16"]
[EventType "swiss"]
[EventCountry "SUI"]
[TimeControl "900+5"]

1. e4 {[%emt 0:00:03]} e6 {[%emt 0:00:02]} 2. d4 {[%emt 0:00:03]} d5 {[%emt 0:00:01]} 3. exd5 {[%emt 0:00:02]} exd5 {[%emt 0:00:01]} 4. Nf3 {[%emt 0:00:03]} Nf6 {[%emt 0:00:07]} 5. Nc3 {[%emt 0:00:04]} c6 {[%emt 0:00:36]} 6. Bg5 {[%emt 0:00:05]} Bd6 {[%emt 0:00:33]} 7. h3 {[%emt 0:00:23]} O-O {[%emt 0:00:04]} 8. Be2 {[%emt 0:00:15]} Bf5 {[%emt 0:00:13]} 9. O-O {[%emt 0:00:21]} Nbd7 {[%emt 0:00:04]} 10. Bd3 {[%emt 0:00:12]} Bg6 {[%emt 0:00:19]} 11. Re1 {[%emt 0:00:20]} Qc7 {[%emt 0:00:07]} 12. Bxg6 {[%emt 0:00:40]} fxg6 {[%emt 0:01:27]} 13. Ne2 {[%emt 0:01:50]} Ne4 {[%emt 0:00:26]} 14. Be3 {[%emt 0:01:06]} Ndf6 {[%emt 0:00:26]} 15. Nc3 {[%emt 0:01:09]} Bf4 {[%emt 0:01:14]} 16. Nxe4 {[%emt 0:00:48]} Nxe4 {[%emt 0:01:09]} 17. Ne5 {[%emt 0:01:25]} *

[Event "56th Biel Festival Rapid 2023"]
[Site "Biel"]
[Date "2024.04.13"]
[Round "6"]
[White "Pranav Anand"]
[Black "Quesada Perez, Luis Ernesto"]
[Result "*"]
[WhiteElo "2510"]
[BlackElo "2553"]
[PlyCount "42"]
[EventDate "2023.07.16"]
[EventType "swiss"]
[EventCountry "SUI"]
[TimeControl "900+5"]

1. d4 {[%emt 0:00:03]} Nf6 {[%emt 0:00:02]} 2. c4 {[%emt 0:00:01]} c6 {[%emt 0:00:16]} 3. Nc3 {[%emt 0:00:04]} d5 {[%emt 0:00:06]} 4. e3 {[%emt 0:00:06]} e6 {[%emt 0:00:11]} 5. Nf3 {[%emt 0:00:00]} Nbd7 {[%emt 0:00:02]} 6. Qc2 {[%emt 0:00:02]} Bd6 {[%emt 0:00:02]} 7. g4 {[%emt 0:00:00]} Nxg4 {[%emt 0:01:53]} 8. Rg1 {[%emt 0:00:01]} Qf6 {[%emt 0:00:02]} 9. Rxg4 {[%emt 0:00:00]} Qxf3 {[%emt 0:00:02]} 10. Rxg7 {[%emt 0:00:00]} Nf6 {[%emt 0:00:02]} 11. Bg2 {[%emt 0:00:03]} Qh5 {[%emt 0:00:11]} 12. e4 {[%emt 0:00:00]} dxe4 {[%emt 0:00:12]} 13. Be3 {[%emt 0:00:52]} Bd7 {[%emt 0:00:27]} 14. Rg5 {[%emt 0:00:22]} Qh4 {[%emt 0:00:05]} 15. O-O-O {[%emt 0:01:29]} Bf4 {[%emt 0:00:34]} 16. Rg3 {[%emt 0:01:54]} Bxe3+ {[%emt 0:00:25]} 17. fxe3 {[%emt 0:00:39]} O-O-O {[%emt 0:00:33]} 18. Bxe4 {[%emt 0:00:31]} Rhg8 {[%emt 0:00:33]} 19. Rdg1 {[%emt 0:00:51]} Rxg3 {[%emt 0:00:51]} 20. Rxg3 {[%emt 0:00:02]} Ng4 {[%emt 0:02:00]} 21. Qg2 {[%emt 0:01:04]} f5 {[%emt 0:00:01]} *

[Event "56th Biel Festival Rapid 2023"]
[Site "Biel"]
[Date "2024.04.13"]
[Round "6"]
[White "Bharath Subramaniyam H"]
[Black "Vantika Agrawal"]
[Result "*"]
[WhiteElo "2488"]
[BlackElo "2428"]
[PlyCount "30"]
[EventDate "2023.07.16"]
[EventType "swiss"]
[EventCountry "SUI"]
[TimeControl "900+5"]

1. d4 {[%emt 0:00:09]} Nf6 {[%emt 0:00:04]} 2. Nf3 {[%emt 0:00:03]} g6 {[%emt 0:00:05]} 3. Nc3 {[%emt 0:00:07]} d5 {[%emt 0:00:01]} 4. Bf4 {[%emt 0:00:02]} Bg7 {[%emt 0:00:01]} 5. Nb5 {[%emt 0:00:01]} Na6 {[%emt 0:00:02]} 6. e3 {[%emt 0:00:02]} O-O {[%emt 0:00:02]} 7. Be2 {[%emt 0:00:02]} Ne4 {[%emt 0:00:57]} 8. O-O {[%emt 0:00:22]} c6 {[%emt 0:00:30]} 9. Na3 {[%emt 0:00:40]} c5 {[%emt 0:00:38]} 10. Be5 {[%emt 0:00:50]} f6 {[%emt 0:01:06]} 11. Bg3 {[%emt 0:00:54]} Nxg3 {[%emt 0:00:42]} 12. hxg3 {[%emt 0:00:01]} cxd4 {[%emt 0:00:09]} 13. Nxd4 {[%emt 0:05:54]} e5 {[%emt 0:01:32]} 14. Nb3 {[%emt 0:00:01]} Be6 {[%emt 0:01:00]} 15. c4 {[%emt 0:00:13]} Rc8 {[%emt 0:00:36]} *

[Event "56th Biel Festival Rapid 2023"]
[Site "Biel"]
[Date "2024.04.13"]
[Round "6"]
[White "Haimovich, Tal"]
[Black "Rasovic, Dragan"]
[Result "*"]
[WhiteElo "2374"]
[BlackElo "2069"]
[PlyCount "30"]
[EventDate "2023.07.16"]
[EventType "swiss"]
[EventCountry "SUI"]
[TimeControl "900+5"]

1. e4 {[%emt 0:00:03]} c6 {[%emt 0:00:02]} 2. Nc3 {[%emt 0:00:03]} d5 {[%emt 0:00:01]} 3. Nf3 {[%emt 0:00:01]} dxe4 {[%emt 0:00:01]} 4. Nxe4 {[%emt 0:00:02]} Nd7 {[%emt 0:00:05]} 5. d4 {[%emt 0:00:11]} Ngf6 {[%emt 0:00:00]} 6. Ng3 {[%emt 0:00:15]} e6 {[%emt 0:00:00]} 7. Bd3 {[%emt 0:00:11]} c5 {[%emt 0:00:03]} 8. O-O {[%emt 0:00:24]} cxd4 {[%emt 0:00:46]} 9. Nxd4 {[%emt 0:00:03]} Be7 {[%emt 0:00:06]} 10. Re1 {[%emt 0:00:23]} O-O {[%emt 0:00:00]} 11. c3 {[%emt 0:00:16]} a6 {[%emt 0:01:34]} 12. Bc2 {[%emt 0:03:20]} Re8 {[%emt 0:00:14]} 13. Bf4 {[%emt 0:02:02]} Bf8 {[%emt 0:01:50]} 14. Bg5 {[%emt 0:01:51]} h6 {[%emt 0:00:52]} 15. Be3 {[%emt 0:00:24]} b6 {[%emt 0:01:33]} *

[Event "56th Biel Festival Rapid 2023"]
[Site "Biel"]
[Date "2024.04.13"]
[Round "6"]
[White "Sukandar, Irine Kharisma"]
[Black "Huston, Gus"]
[Result "*"]
[WhiteElo "2358"]
[BlackElo "2341"]
[PlyCount "43"]
[EventDate "2023.07.16"]
[EventType "swiss"]
[EventCountry "SUI"]
[TimeControl "900+5"]

1. e4 {[%emt 0:00:05]} c5 {[%emt 0:00:02]} 2. Nf3 {[%emt 0:00:05]} d6 {[%emt 0:00:01]} 3. d4 {[%emt 0:00:11]} cxd4 {[%emt 0:00:02]} 4. Qxd4 {[%emt 0:00:03]} Nc6 {[%emt 0:00:01]} 5. Bb5 {[%emt 0:00:02]} Bd7 {[%emt 0:00:01]} 6. Bxc6 {[%emt 0:00:04]} Bxc6 {[%emt 0:00:02]} 7. c4 {[%emt 0:00:03]} Nf6 {[%emt 0:00:03]} 8. Nc3 {[%emt 0:00:11]} g6 {[%emt 0:00:02]} 9. O-O {[%emt 0:00:10]} Bg7 {[%emt 0:00:01]} 10. h3 {[%emt 0:00:10]} O-O {[%emt 0:00:03]} 11. Qe3 {[%emt 0:00:05]} a6 {[%emt 0:00:02]} 12. Rb1 {[%emt 0:00:27]} b5 {[%emt 0:00:05]} 13. Nd4 {[%emt 0:00:17]} Qb6 {[%emt 0:01:04]} 14. Nxc6 {[%emt 0:04:03]} Qxc6 {[%emt 0:00:01]} 15. cxb5 {[%emt 0:00:29]} axb5 {[%emt 0:00:02]} 16. a3 {[%emt 0:00:05]} Rfc8 {[%emt 0:01:18]} 17. Bd2 {[%emt 0:00:05]} Qc4 {[%emt 0:00:13]} 18. Rfc1 {[%emt 0:00:48]} Qb3 {[%emt 0:00:02]} 19. Qe2 {[%emt 0:00:15]} Rab8 {[%emt 0:00:20]} 20. e5 {[%emt 0:02:42]} dxe5 {[%emt 0:00:09]} 21. Qxe5 {[%emt 0:00:03]} e6 {[%emt 0:01:13]} 22. Qe2 {[%emt 0:01:21]} *

[Event "56th Biel Festival Rapid 2023"]
[Site "Biel"]
[Date "2024.04.13"]
[Round "6"]
[White "Kocharin, Timur"]
[Black "Olarte, Stefan"]
[Result "*"]
[WhiteElo "2225"]
[BlackElo "1879"]
[PlyCount "74"]
[EventDate "2023.07.16"]
[EventType "swiss"]
[EventCountry "SUI"]
[TimeControl "900+5"]

1. e4 {[%emt 0:00:03]} g6 {[%emt 0:00:01]} 2. d4 {[%emt 0:00:05]} Bg7 {[%emt 0:00:01]} 3. Nc3 {[%emt 0:00:02]} Nc6 {[%emt 0:00:04]} 4. d5 {[%emt 0:00:16]} Nb8 {[%emt 0:00:03]} 5. Nf3 {[%emt 0:00:05]} d6 {[%emt 0:00:06]} 6. Be2 {[%emt 0:00:06]} c6 {[%emt 0:00:20]} 7. O-O {[%emt 0:00:04]} cxd5 {[%emt 0:00:03]} 8. Nxd5 {[%emt 0:00:09]} e6 {[%emt 0:00:16]} 9. Nc3 {[%emt 0:00:06]} a6 {[%emt 0:00:08]} 10. Bf4 {[%emt 0:00:05]} e5 {[%emt 0:00:12]} 11. Bg5 {[%emt 0:00:01]} f6 {[%emt 0:00:01]} 12. Be3 {[%emt 0:00:02]} Be6 {[%emt 0:00:20]} 13. Nd5 {[%emt 0:00:04]} Nd7 {[%emt 0:00:02]} 14. c4 {[%emt 0:00:06]} Ne7 {[%emt 0:00:12]} 15. b4 {[%emt 0:00:14]} Bxd5 {[%emt 0:00:29]} 16. cxd5 {[%emt 0:00:03]} O-O {[%emt 0:00:25]} 17. Rc1 {[%emt 0:00:18]} h6 {[%emt 0:00:15]} 18. Qd2 {[%emt 0:00:06]} Kh7 {[%emt 0:00:02]} 19. Ne1 {[%emt 0:00:33]} f5 {[%emt 0:00:17]} 20. f3 {[%emt 0:00:23]} f4 {[%emt 0:00:05]} 21. Bf2 {[%emt 0:00:02]} g5 {[%emt 0:00:02]} 22. Nd3 {[%emt 0:00:52]} h5 {[%emt 0:00:33]} 23. Rc2 {[%emt 0:00:08]} Rc8 {[%emt 0:01:51]} 24. Rfc1 {[%emt 0:00:02]} Kg6 {[%emt 0:00:38]} 25. Rxc8 {[%emt 0:00:15]} Nxc8 {[%emt 0:00:02]} 26. Qc3 {[%emt 0:00:03]} b6 {[%emt 0:00:57]} 27. Qc7 {[%emt 0:00:05]} Bf6 {[%emt 0:00:26]} 28. Nb2 {[%emt 0:00:10]} b5 {[%emt 0:00:02]} 29. Qxd8 {[%emt 0:00:04]} Rxd8 {[%emt 0:00:02]} 30. Rc6 {[%emt 0:00:02]} Nb8 {[%emt 0:00:05]} 31. Rc7 {[%emt 0:00:07]} Be7 {[%emt 0:00:38]} 32. a4 {[%emt 0:00:13]} bxa4 {[%emt 0:00:12]} 33. Nxa4 {[%emt 0:00:01]} Kf6 {[%emt 0:00:01]} 34. Kf1 {[%emt 0:00:06]} Kf7 {[%emt 0:00:23]} 35. Ke1 {[%emt 0:00:02]} Ke8 {[%emt 0:00:02]} 36. Kd2 {[%emt 0:00:02]} Bf6 {[%emt 0:00:14]} 37. Nb2 {[%emt 0:00:19]} Ne7 {[%emt 0:01:41]} *

[Event "56th Biel Festival Rapid 2023"]
[Site "Biel"]
[Date "2024.04.13"]
[Round "6"]
[White "Vincenti, Leonardo"]
[Black "Dorand, Jean-Pierre"]
[Result "*"]
[WhiteElo "2117"]
[BlackElo "1885"]
[PlyCount "52"]
[EventDate "2023.07.16"]
[EventType "swiss"]
[EventCountry "SUI"]
[TimeControl "900+5"]

1. e4 {[%emt 0:00:01]} c6 {[%emt 0:00:02]} 2. d4 {[%emt 0:00:01]} d5 {[%emt 0:00:03]} 3. exd5 {[%emt 0:00:02]} cxd5 {[%emt 0:00:03]} 4. Bd3 {[%emt 0:00:02]} Nc6 {[%emt 0:00:01]} 5. c3 {[%emt 0:00:01]} Qc7 {[%emt 0:00:03]} 6. h3 {[%emt 0:00:14]} Nf6 {[%emt 0:00:10]} 7. Nf3 {[%emt 0:00:05]} g6 {[%emt 0:00:07]} 8. O-O {[%emt 0:00:08]} Bg7 {[%emt 0:00:06]} 9. Re1 {[%emt 0:00:10]} O-O {[%emt 0:00:01]} 10. Nbd2 {[%emt 0:00:27]} Bf5 {[%emt 0:00:16]} 11. Bxf5 {[%emt 0:00:20]} gxf5 {[%emt 0:00:02]} 12. Ne5 {[%emt 0:00:07]} e6 {[%emt 0:00:09]} 13. Ndf3 {[%emt 0:00:11]} Ne4 {[%emt 0:00:18]} 14. Bf4 {[%emt 0:00:03]} Qb6 {[%emt 0:00:43]} 15. Nd7 {[%emt 0:00:13]} Qxb2 {[%emt 0:00:07]} 16. Nxf8 {[%emt 0:00:10]} Rxf8 {[%emt 0:00:02]} 17. Qc1 {[%emt 0:00:30]} Qxc3 {[%emt 0:00:18]} 18. Qxc3 {[%emt 0:02:37]} Nxc3 {[%emt 0:00:03]} 19. Be3 {[%emt 0:00:02]} Re8 {[%emt 0:02:06]} 20. Kf1 {[%emt 0:00:27]} h6 {[%emt 0:00:33]} 21. Rec1 {[%emt 0:00:39]} Nb5 {[%emt 0:01:04]} 22. Rab1 {[%emt 0:00:17]} Nbxd4 {[%emt 0:00:05]} 23. Nxd4 {[%emt 0:00:03]} Nxd4 {[%emt 0:00:10]} 24. Rxb7 {[%emt 0:00:02]} f4 {[%emt 0:01:43]} 25. Bxf4 {[%emt 0:00:37]} e5 {[%emt 0:00:03]} 26. Be3 {[%emt 0:00:29]} Ne6 {[%emt 0:00:19]} *

[Event "56th Biel Festival Rapid 2023"]
[Site "Biel"]
[Date "2024.04.13"]
[Round "6"]
[White "Piazza, Carlo"]
[Black "Kleinert, Juergen"]
[Result "*"]
[WhiteElo "2106"]
[BlackElo "1802"]
[PlyCount "32"]
[EventDate "2023.07.16"]
[EventType "swiss"]
[EventCountry "SUI"]
[TimeControl "900+5"]

1. e4 {[%emt 0:00:00]} e5 {[%emt 0:00:03]} 2. Nf3 {[%emt 0:00:01]} d5 {[%emt 0:00:05]} 3. Nxe5 {[%emt 0:00:03]} Bd6 {[%emt 0:00:00]} 4. d4 {[%emt 0:00:05]} dxe4 {[%emt 0:00:00]} 5. Nc4 {[%emt 0:00:01]} Be7 {[%emt 0:00:03]} 6. Nc3 {[%emt 0:00:06]} Nf6 {[%emt 0:00:00]} 7. Bg5 {[%emt 0:00:13]} Bf5 {[%emt 0:00:00]} 8. Qd2 {[%emt 0:00:28]} O-O {[%emt 0:00:15]} 9. h3 {[%emt 0:00:17]} h6 {[%emt 0:00:04]} 10. Be3 {[%emt 0:00:20]} Nd5 {[%emt 0:00:26]} 11. Nxd5 {[%emt 0:00:39]} Qxd5 {[%emt 0:00:02]} 12. g4 {[%emt 0:00:10]} Bh7 {[%emt 0:00:15]} 13. Na5 {[%emt 0:02:42]} Nc6 {[%emt 0:05:17]} 14. Nxc6 {[%emt 0:01:12]} Qxc6 {[%emt 0:00:47]} 15. O-O-O {[%emt 0:00:24]} b5 {[%emt 0:00:29]} 16. Qa5 {[%emt 0:01:08]} Rfb8 {[%emt 0:00:59]} *

[Event "56th Biel Festival Rapid 2023"]
[Site "Biel"]
[Date "2024.04.13"]
[Round "6"]
[White "Prieb, Robert"]
[Black "Schaer, Bryan"]
[Result "*"]
[WhiteElo "2060"]
[BlackElo "1283"]
[PlyCount "55"]
[EventDate "2023.07.16"]
[EventType "swiss"]
[EventCountry "SUI"]
[TimeControl "900+5"]

1. d4 {[%emt 0:00:04]} e6 {[%emt 0:00:03]} 2. c4 {[%emt 0:00:05]} Nf6 {[%emt 0:00:04]} 3. Nf3 {[%emt 0:00:03]} d5 {[%emt 0:00:04]} 4. Nc3 {[%emt 0:00:04]} g6 {[%emt 0:00:15]} 5. Bf4 {[%emt 0:00:42]} Bg7 {[%emt 0:00:13]} 6. e3 {[%emt 0:00:07]} c6 {[%emt 0:00:08]} 7. c5 {[%emt 0:00:08]} O-O {[%emt 0:01:19]} 8. Bd3 {[%emt 0:00:04]} Nbd7 {[%emt 0:00:35]} 9. O-O {[%emt 0:00:06]} Nh5 {[%emt 0:00:02]} 10. b4 {[%emt 0:00:18]} Nxf4 {[%emt 0:00:13]} 11. exf4 {[%emt 0:00:03]} b6 {[%emt 0:00:29]} 12. Ne5 {[%emt 0:00:07]} Nxe5 {[%emt 0:00:08]} 13. fxe5 {[%emt 0:00:02]} a5 {[%emt 0:00:16]} 14. a3 {[%emt 0:00:03]} Ba6 {[%emt 0:00:17]} 15. Bxa6 {[%emt 0:00:04]} Rxa6 {[%emt 0:00:04]} 16. Qc2 {[%emt 0:00:21]} axb4 {[%emt 0:01:31]} 17. axb4 {[%emt 0:00:02]} Rxa1 {[%emt 0:00:02]} 18. Rxa1 {[%emt 0:00:02]} b5 {[%emt 0:00:09]} 19. Ra6 {[%emt 0:00:14]} Qc7 {[%emt 0:00:55]} 20. Ne2 {[%emt 0:00:23]} Qb7 {[%emt 0:00:23]} 21. Qa2 {[%emt 0:00:06]} Rc8 {[%emt 0:01:04]} 22. Ra7 {[%emt 0:00:08]} Qb8 {[%emt 0:00:03]} 23. f4 {[%emt 0:00:27]} h6 {[%emt 0:01:08]} 24. Qa6 {[%emt 0:00:07]} Rf8 {[%emt 0:00:19]} 25. Qb7 {[%emt 0:00:51]} Qxb7 {[%emt 0:00:53]} 26. Rxb7 {[%emt 0:00:02]} Rc8 {[%emt 0:00:08]} 27. Ra7 {[%emt 0:00:10]} Bh8 {[%emt 0:01:03]} 28. Nc1 {[%emt 0:00:08]} *